Workbook

Sheet PFP
A1: PROPOSTA FINANCEIRA DO PROJETO | J1: CODIGO:
J2: PFP
A3: NOME DA CONSULTORA:
A5: PROJETO: | F5: CONTRATANTE: | J5: BASE: Set/2022
A6: ESTUDOS E PROJETO BÁSICO/EXECUTIVO DA SEGUNDA ETAPA DOS SISTEMAS DE ABASTECIMENTO DE ÁGUA A PARTIR DO CANAL DO SERTÃO DE ALAGOAS, ATENDENDO OS MUNICÍPIOS DE INHAPI, OLHO D`ÁGUA DO CASADO E PIRANHAS NO ESTADO DE ALAGOAS | F6: 5ª SUPERINTENDÊNCIA REGIONAL DA CODEVASF | J6: PROP: Set/2022 CODEVASF: fev/2020 SICRO/AL: Abril/2022 EMBASA: jan/2022 ORSE: jul/2022
A7: Base | B7: Cod2 | C7: Cod3 | D7: Categoria / Insumo | E7: Uni | F7: Qde | G7: CUD | H7: PU | I7: FatorK | J7: CT | K7: PT
A8: SICRO | B8: MO3 | C8: P0 | D8: Engenheiro coordenador (P8061) | E8: mês | F8: ='CRO1_Ins-Pro'!D5 -> 2 | G8: 16848.3 | H8: =ROUND(I8*G8,2) -> 23889.2 | I8: ='PFP2.3_FatorKc'!E36 -> 1.4179 | J8: =ROUND(F8*G8,2) -> 33696.6 | K8: =ROUND(F8*H8,2) -> 47778.4
A9: SICRO | B9: MO2 | C9: P1 | D9: Engenheiro sênior (P8067) | E9: mês | F9: ='CRO1_Ins-Pro'!D6 -> 4 | G9: 14226.86 | H9: 23680.61 | I9: ='PFP2.2_FatorKb'!$E$36 -> 1.6645 | J9: 56907.44 | K9: 94722.44
A10: SICRO | B10: MO1 | C10: P2 | D10: Engenheiro pleno (P8066) | E10: mês | F10: ='CRO1_Ins-Pro'!D7 -> 4 | G10: 10864.39 | H10: =ROUND(I10*G10,2) -> 24744.73 | I10: ='PFP2.1_FatorKa'!$E$36 -> 2.2776 | J10: =ROUND(F10*G10,2) -> 43457.56 | K10: 98978.92
A11: SICRO | B11: MO1 | C11: P3 | D11: Engenheiro júnior (P8065) | E11: mês | F11: ='CRO1_Ins-Pro'!D8 -> 3 | G11: 10302 | H11: =ROUND(I11*G11,2) -> 23463.84 | I11: ='PFP2.1_FatorKa'!$E$36 -> 2.2776 | J11: =ROUND(F11*G11,2) -> 30906 | K11: 70391.52
A12: SICRO | B12: MO1 | C12: T1 | D12: Técnico de projetos/obra (P8147) | E12: mês | F12: ='CRO1_Ins-Pro'!D9 -> 4 | G12: 2974.3 | H12: 6774.27 | I12: ='PFP2.1_FatorKa'!$E$36 -> 2.2776 | J12: 11897.2 | K12: 27097.08
A13: SICRO | B13: MO1 | C13: A1 | D13: Secretária (P8135) | E13: mês | F13: ='CRO1_Ins-Pro'!D10 -> 2 | G13: 2189.27 | H13: =ROUND(I13*G13,2) -> 4986.28 | I13: ='PFP2.1_FatorKa'!$E$36 -> 2.2776 | J13: =ROUND(F13*G13,2) -> 4378.54 | K13: =ROUND(F13*H13,2) -> 9972.56
A14: SICRO | B14: MO1 | C14: S1 | D14: Analista sênior (P8125) | E14: mês | F14: ='CRO1_Ins-Pro'!D11 -> 0.5 | G14: 5891.96 | H14: 13419.53 | I14: ='PFP2.1_FatorKa'!$E$36 -> 2.2776 | J14: 2945.98 | K14: 6709.77
A15: SICRO | B15: MO1 | C15: S2 | D15: Analista pleno (P8124) | E15: mês | F15: ='CRO1_Ins-Pro'!D12 -> 0.5 | G15: 4039.8 | H15: 9201.05 | I15: ='PFP2.1_FatorKa'!$E$36 -> 2.2776 | J15: 2019.9 | K15: 4600.53
A16: SICRO | B16: MO1 | C16: S3 | D16: Analista júnior (P8123) | E16: mês | F16: ='CRO1_Ins-Pro'!D13 -> 1 | G16: 3029.85 | H16: 6900.79 | I16: ='PFP2.1_FatorKa'!$E$36 -> 2.2776 | J16: 3029.85 | K16: 6900.79
A17: SICRO | B17: EC | C17: ECA | D17: Encargos Comp. e Adicionais | E17: mês | F17: ='CRO1_Ins-Pro'!D14 -> 17.5 | G17: =587.4+3.6+304.99+9.98 -> 905.97 | H17: 1116.97 | I17: =PFP3_FatorKd!$E$17 -> 1.2329 | J17: =ROUND(F17*G17,2) -> 15854.48 | K17: =ROUND(F17*H17,2) -> 19546.98
A18: SICRO | B18: EC | C18: AT1 | D18: Auxilio Transporte Analista junior | E18: mês | F18: =F16 -> 1 | G18: 37.24 | H18: =ROUND(I18*G18,2) -> 45.91 | I18: =PFP3_FatorKd!$E$17 -> 1.2329 | J18: =ROUND(F18*G18,2) -> 37.24 | K18: =ROUND(F18*H18,2) -> 45.91
A19: SICRO | B19: EC | C19: AT2 | D19: Auxilio Transporte Técnicos | E19: mês | F19: ='CRO1_Ins-Pro'!D16 -> 3 | G19: 40.57 | H19: =ROUND(I19*G19,2) -> 50.02 | I19: =PFP3_FatorKd!$E$17 -> 1.2329 | J19: =ROUND(F19*G19,2) -> 121.71 | K19: =ROUND(F19*H19,2) -> 150.06
A20: SICRO | B20: EC | C20: AT3 | D20: Auxilio Transporte Secretária | E20: mês | F20: ='CRO1_Ins-Pro'!D17 -> 2 | G20: 87.68 | H20: 108.1 | I20: =PFP3_FatorKd!$E$17 -> 1.2329 | J20: 175.36 | K20: 216.2
A21: CODE | B21: LO | C21: V1 | D21: Diárias | E21: dia | F21: ='CRO1_Ins-Pro'!D18 -> 88 | G21: 218.1 | H21: 268.9 | I21: =PFP3_FatorKd!$E$17 -> 1.2329 | J21: 19192.8 | K21: 23663.2
A22: PROP | B22: LO | C22: V2 | D22: Pick-up cabine dupla 4x4, com ar-condicionado, incluindo despesas com combustível, óleos, conservação e manutenção | E22: dia | F22: ='CRO1_Ins-Pro'!D19 -> 44 | G22: ='CCU VEÍCULO'!D53 -> 372.21 | H22: 458.9 | I22: =PFP3_FatorKd!$E$17 -> 1.2329 | J22: 16377.24 | K22: 20191.6
A23: PROP | B23: LO | C23: V3 | D23: Passagens Aéreas (ida e volta) | E23: un | F23: ='CRO1_Ins-Pro'!D20 -> 4 | G23: 1936 | H23: 2386.89 | I23: =PFP3_FatorKd!$E$17 -> 1.2329 | J23: 7744 | K23: 9547.56
A24: CODE | B24: EM | C24: M1 | D24: Relatório Parcial | E24: un | F24: ='CRO1_Ins-Pro'!D21 -> 9 | G24: 33.35 | H24: 41.12 | I24: =PFP3_FatorKd!$E$17 -> 1.2329 | J24: 300.15 | K24: =ROUND(F24*H24,2) -> 370.08
A25: CODE | B25: EM | C25: M2 | D25: Relatório Final | E25: un | F25: ='CRO1_Ins-Pro'!D22 -> 9 | G25: 1478.8 | H25: 1823.21 | I25: =PFP3_FatorKd!$E$17 -> 1.2329 | J25: 13309.2 | K25: =ROUND(F25*H25,2) -> 16408.89
A26: CODE | B26: SU | C26: TOP | D26: Total Serviços Topográficos | E26: un | F26: ='CRO1_Ins-Pro'!D23 -> 1 | G26: - | H26: ='PFP1.1_Topo'!G21 -> 38154.85 | I26: - | J26: - | K26: =ROUND(F26*H26,2) -> 38154.85
A27: CODE | B27: SU | C27: GEO | D27: Total Serviços Geotécnicos | E27: un | F27: ='CRO1_Ins-Pro'!D24 -> 1 | G27: - | H27: ='PFP1.2_Geo'!G14 -> 18681.79 | I27: - | J27: - | K27: =ROUND(F27*H27,2) -> 18681.79
A28: CODE | B28: SU | C28: AMB | D28: Total Serviços Ambientais | E28: un | F28: ='CRO1_Ins-Pro'!D25 -> 1 | G28: - | H28: ='PFP1.3_Amb'!G38 -> 1177.95 | I28: - | J28: - | K28: =ROUND(F28*H28,2) -> 1177.95
A29: TOTAL DOS CUSTOS DIRETOS PARA 01 (UM) SISTEMA | H29: =SUM(J8:J28) -> 262351.25
A30: TOTAL DOS ENCARGOS E DISPESAS DIVERSAS PARA 01 (UM) SISTEMA | H30: =H31-H29 -> 194941.24
A31: TOTAL DA PROPOSTA A PREÇO GLOBAL PARA 01 (UM) SISTEMA | H31: =SUM(K8:K25) -> 457292.49
A32: TOTAL DA PROPOSTA A PREÇO UNITÁRIO PARA 01 (UM) SISTEMA | H32: =SUM(K26:K28) -> 58014.59
A33: TOTAL DA PROPOSTA PARA 01 (UM) SISTEMA | H33: =H31+H32 -> 515307.08
A34: NÚMERO DE SISTEMAS | H34: 7
A35: TOTAL DOS CUSTOS DIRETOS PARA 07 (SETE) SISTEMAS | H35: =SUM(J8:J28)*H34 -> 1836458.75
A36: TOTAL DOS ENCARGOS E DISPESAS DIVERSAS PARA 07 (SETE) SISTEMAS | H36: =H37-H35 -> 1364588.68
A37: TOTAL DA PROPOSTA A PREÇO GLOBAL PARA 07 (SETE) SISTEMAS | H37: =SUM(K8:K25)*H34 -> 3201047.43
A38: TOTAL DA PROPOSTA A PREÇO UNITÁRIO PARA 07 (SETE) SISTEMAS | H38: =SUM(K26:K28)*H34 -> 406102.13
A39: TOTAL DA PROPOSTA PARA 07 (SETE) SISTEMAS | H39: =H37+H38 -> 3607149.56
A40: OBSERVAÇÃO:
A41: Alocar os Insumos MO, com respectivo FatorK, dentro da categoria de vínculo contratual (celetista, autonomo, societario)
A42: Uni - unidade de medição do insumo;
A43: Qde - Quantidade do Insumo (não pode ocorrer alteração pela Licitante)
A44: CUD - Custo Unitário Direto do Insumo (sem encargos, taxas e impostos, valor não pode ser maior que o Orçado pela Codevasf)
A45: CT - Custo Total (sem encargos, taxas e impostos) - CT = Qde x CUD
A46: FatorK - Taxa de Ressarcimento de Despesas e Encargos (detalhar composição nas Planilhas "PFP2.1", "PFP2.2", "PFP3")
A47: PU - Preço Unitário do Insumo (incluído encargos, taxas e impostos) - PU = CUD x FatorK
A48: PT - Preço Total do Insumo (incluído encargos, taxas e impostos) - PT = Qde x PU
A49: P - Profissionais nível superior nas áreas de Engenharia, Química, Arquitetura, Agronomia e Veterinária, conforme disposições da Lei 4.950-A/66
A50: S - Profissionais de nível superior nas demais áreas de atuação, incluindo Arqueólogo, Biólogo, Geógrafo e Sociólogo
A51: T - Profissionais de nível médio técnico nas diversas áreas de atuação
A52: A - Profissionais de nível médio de apoio técnico-administrativo
A53: Encargos complementares e adicionais contempla: alimentação, assistência médica, seguro de vida e exame ocupacional.
G57: =H33/40 -> 12882.677

Sheet PFP1.1_Topo
A1: SERVIÇOS TOPOGRÁFICOS/CARTOGRÁFICOS | G1: CODIGO:
G2: PFP-1.1
A3: NOME DA EMPRESA:
A5: PROJETO: | E5: CONTRATANTE: | G5: =PFP!J5 -> BASE: Set/2022
A6: =PFP!A6 -> ESTUDOS E PROJETO BÁSICO/EXECUTIVO DA SEGUNDA ETAPA DOS SISTEMAS DE ABASTECIMENTO DE ÁGUA A PARTIR DO CANAL DO SERTÃO DE ALAGOAS, ATENDENDO OS MUNICÍPIOS DE INHAPI, OLHO D`ÁGUA DO CASADO E PIRANHAS NO ESTADO DE ALAGOAS | E6: =PFP!F6 -> 5ª SUPERINTENDÊNCIA REGIONAL DA CODEVASF | G6: =PFP!J6 -> PROP: Set/2022 CODEVASF: fev/2020 SICRO/AL: Abril/2022 EMBASA: jan/2022 ORSE: jul/2022
A7: Cod. | B7: Base | C7: Insumos | D7: Uni | E7: Qde | F7: Preço Unitário (PU) | G7: Preço Total (PT)
A8: COTAÇÃO | B8: COTAÇÃO | C8: Serviço de aerofotogrametria com aeronave devidamente homologada pela Agência Nacional de Aviação Civil (ANAC), na categoria de Serviço Aéreo Especializado (SAE),para a geração das ortofotos (fotos aéreas georreferenciadas e corrigidas de distorções do relevo e acidentes geográficos) | D8: ha | E8: =$E$11*5 -> 45 | F8: 190 | G8: =ROUND(F8*E8,2) -> 8550
A9: COTAÇÃO | B9: COTAÇÃO | C9: Geração de Nuvem de pontos bruta (sem classificação) | D9: ha | E9: =$E$11*5 -> 45 | F9: 80 | G9: 3600
A10: COTAÇÃO | B10: COTAÇÃO | C10: Nuvem de pontos classificada, modelo digital de terreno e modelo digital de superfície | D10: ha | E10: =$E$11*5 -> 45 | F10: 100 | G10: 4500
A11: TP19 | B11: CODE | C11: Pontos GPS de dupla frequência (L1/L2) | D11: km | E11: 9 | F11: 807.34 | G11: 7266.06
A12: TP23 | B12: CODE | C12: Cadastro Físico (Faixa domínio e instalações) | D12: ha | E12: =$E$11*4/3 -> 12 | F12: 15.86 | G12: 190.32
A13: 4316 | B13: ORSE | C13: Cadastro das casas e pontos de atendimento de água tratada (escolas, associações, postos de saude ...) | D13: ha | E13: 40 | F13: =ROUND(46.15*1.2032,2) -> 55.53 | G13: 2221.2
A14: TP24 | B14: CODE | C14: Cadastro Agrícola (Faixa domínio e instalações) | D14: ha | E14: =E13 -> 40 | F14: 5.29 | G14: 211.6
A15: TP25 | B15: CODE | C15: Cadastro Jurídico (Faixa domínio e instalações) | D15: ha | E15: =E14 -> 40 | F15: 10.57 | G15: 422.8
A16: TP26 | B16: CODE | C16: Cadastro Socioeconômico (Faixa domínio e instalações) | D16: ha | E16: =E15 -> 40 | F16: 3.52 | G16: 140.8
A17: TP27 | B17: CODE | C17: Marco de Concreto (12x18x60cm) | D17: un | E17: =E11 -> 9 | F17: 40.78 | G17: 367.02
A18: TP28 | B18: CODE | C18: Estaca Testemunha de Madeira (2x4x70cm) | D18: un | E18: 200 | F18: 20.44 | G18: 4088
A19: TP29 | B19: CODE | C19: Piquetes de Madeira (2x2x20cm) | D19: un | E19: 2000 | F19: 2.41 | G19: 4820
A20: PD06 | B20: CODE | C20: Picada Manual p/ levantamento TP | D20: km | E20: 15 | F20: 118.47 | G20: 1777.05
A21: TOTAL SERVIÇOS TOPOGRÁFICOS | G21: =SUM(G8:G20) -> 38154.85
A22: OBSERVAÇÃO:
A23: Uni - unidade de medição do insumo;
A24: Qde - Quantidade do Insumo (não pode ocorrer alteração pela Licitante)
A25: PU - Preço Unitário (tal qual as composições padrão da Codevasf, já incluso o fator K / BDI de 20,32%)
A26: PT - Preço Total (incluído encargos, taxas e impostos) - PT = Qde x PU
F31: 40
F32: =F31/8 -> 5
F110: =G21/30 -> 1271.828333

Sheet PFP1.2_Geo
A1: SERVIÇOS GEOLÓGICOS/GEOTÉCNICOS | G1: CODIGO:
G2: PFP-1.2
A3: NOME DA EMPRESA:
A5: PROJETO: | E5: CONTRATANTE: | G5: =PFP!J5 -> BASE: Set/2022
A6: =PFP!A6 -> ESTUDOS E PROJETO BÁSICO/EXECUTIVO DA SEGUNDA ETAPA DOS SISTEMAS DE ABASTECIMENTO DE ÁGUA A PARTIR DO CANAL DO SERTÃO DE ALAGOAS, ATENDENDO OS MUNICÍPIOS DE INHAPI, OLHO D`ÁGUA DO CASADO E PIRANHAS NO ESTADO DE ALAGOAS | E6: =PFP!F6 -> 5ª SUPERINTENDÊNCIA REGIONAL DA CODEVASF | G6: =PFP!J6 -> PROP: Set/2022 CODEVASF: fev/2020 SICRO/AL: Abril/2022 EMBASA: jan/2022 ORSE: jul/2022
A7: Cod. | B7: Base | C7: Insumos | D7: Uni | E7: Qde | F7: Preço Unitário (PU) | G7: Preço Total (PT)
A8: GT07 | B8: CODE | C8: Sondagem Percussão: (Des)Mobilização | D8: un | E8: 2 | F8: 915.66 | G8: =ROUND(F8*E8,2) -> 1831.32
A9: GT08 | B9: CODE | C9: Sondagem Percursão: com SPT | D9: m | E9: 6 | F9: 80.3 | G9: 481.8
A10: GT09 | B10: CODE | C10: Sondagem Percursão: Desloc/Instalação 0-200 m | D10: un | E10: 1 | F10: 729.08 | G10: 729.08
A11: GT10 | B11: CODE | C11: Sondagem Percursão: Desloc/Instalação 201-500 m | D11: un | E11: 1 | F11: 1051.56 | G11: 1051.56
A12: GT11 | B12: CODE | C12: Sondagem Percursão: Desloc/Instalação >500 m | D12: un | E12: 1 | F12: 1374.03 | G12: 1374.03
A13: GT13 | B13: CODE | C13: Sondagem Trado 4'' | D13: m | E13: =40000/200 -> 200 | F13: 66.07 | G13: 13214
A14: TOTAL SERVIÇOS GEOTÉCNICOS | G14: =SUM(G8:G13) -> 18681.79
A15: LEGENDA:
A16: Uni - unidade de medição do insumo;
A17: Qde - Quantidade do Insumo (não pode ocorrer alteração pela Licitante)
A18: PU - Preço Unitário (composições padrão da Codevasf, já incluso o FatorK)
A19: PT - Preço Total (incluído encargos, taxas e impostos) - PT = Qde x PU
F131: =G14/30 -> 622.7263333

Sheet PFP1.3_Amb
A1: SERVIÇOS ANÁLISE AMBIENTAL | G1: CODIGO:
G2: PFP-1.3
A3: NOME DA EMPRESA:
A5: PROJETO: | E5: CONTRATANTE: | G5: =PFP!J5 -> BASE: Set/2022
A6: =PFP!A6 -> ESTUDOS E PROJETO BÁSICO/EXECUTIVO DA SEGUNDA ETAPA DOS SISTEMAS DE ABASTECIMENTO DE ÁGUA A PARTIR DO CANAL DO SERTÃO DE ALAGOAS, ATENDENDO OS MUNICÍPIOS DE INHAPI, OLHO D`ÁGUA DO CASADO E PIRANHAS NO ESTADO DE ALAGOAS | E6: =PFP!F6 -> 5ª SUPERINTENDÊNCIA REGIONAL DA CODEVASF | G6: =PFP!J6 -> PROP: Set/2022 CODEVASF: fev/2020 SICRO/AL: Abril/2022 EMBASA: jan/2022 ORSE: jul/2022
A7: Cod. | B7: Base | C7: Insumos | D7: Uni | E7: Qde | F7: Preço Unitário (PU) | G7: Preço Total (PT)
A8: 33.01.02 | B8: Embasa | C8: Alcalinidade Total | D8: un | E8: 1 | F8: =ROUND(12.49*1.2032,2) -> 15.03 | G8: =ROUND(E8*F8,2) -> 15.03
A9: 33.01.10 | B9: Embasa | C9: Condutividade | D9: un | E9: 1 | F9: =ROUND(12.49*1.2032,2) -> 15.03 | G9: =ROUND(E9*F9,2) -> 15.03
A10: 33.01.13 | B10: Embasa | C10: DBO | D10: un | E10: 1 | F10: =ROUND(32.9*1.2032,2) -> 39.59 | G10: 39.59
A11: 33.01.14 | B11: Embasa | C11: DQO | D11: un | E11: 1 | F11: =ROUND(26.31*1.2032,2) -> 31.66 | G11: 31.66
A12: 33.01.43 | B12: Embasa | C12: Salinidade | D12: un | E12: 1 | F12: =ROUND(19.74*1.2032,2) -> 23.75 | G12: 23.75
A13: 33.01.44 | B13: Embasa | C13: Sólidos Dissolvidos Totais | D13: un | E13: 1 | F13: =ROUND(17.1*1.2032,2) -> 20.57 | G13: 20.57
A14: 33.01.46 | B14: Embasa | C14: Sólidos Suspensos | D14: un | E14: 1 | F14: =ROUND(17.1*1.2032,2) -> 20.57 | G14: 20.57
A15: 33.01.48 | B15: Embasa | C15: Sólidos Totais | D15: un | E15: 1 | F15: =ROUND(17.1*1.2032,2) -> 20.57 | G15: 20.57
A16: 33.01.51 | B16: Embasa | C16: Turbidez | D16: un | E16: 1 | F16: =ROUND(12.49*1.2032,2) -> 15.03 | G16: 15.03
A17: 33.01.38 | B17: Embasa | C17: Oxigênio Dissolvido | D17: un | E17: 1 | F17: =ROUND(12.49*1.2032,2) -> 15.03 | G17: 15.03
A18: 33.01.39 | B18: Embasa | C18: pH | D18: un | E18: 1 | F18: =ROUND(7*1.2032,2) -> 8.42 | G18: 8.42
A19: F099703027 | B19: Embasa | C19: Temperatura | D19: un | E19: 1 | F19: =ROUND(11.16*1.2032,2) -> 13.43 | G19: 13.43
A20: 33.01.23 | B20: Embasa | C20: Fósforo Total | D20: un | E20: 1 | F20: =ROUND(26.31*1.2032,2) -> 31.66 | G20: 31.66
A21: 33.01.30 | B21: Embasa | C21: Nitrogênio Amoniacal | D21: un | E21: 1 | F21: =ROUND(19.74*1.2032,2) -> 23.75 | G21: 23.75
A22: 33.01.33 | B22: Embasa | C22: Nitrogênio Nitrato | D22: un | E22: 1 | F22: =ROUND(26.31*1.2032,2) -> 31.66 | G22: 31.66
A23: 33.01.32 | B23: Embasa | C23: Nitrogênio Total | D23: un | E23: 1 | F23: =ROUND(26.31*1.2032,2) -> 31.66 | G23: 31.66
A24: F099703058 | B24: Embasa | C24: Clorofila A | D24: un | E24: 1 | F24: =ROUND(30*1.2032,2) -> 36.1 | G24: 36.1
A25: F099703057 | B25: Embasa | C25: Coliformes Termotolerantes | D25: un | E25: 1 | F25: =ROUND(25*1.2032,2) -> 30.08 | G25: 30.08
A26: F099703064 | B26: Embasa | C26: Metais Pesados - Alumínio | D26: un | E26: 1 | F26: =ROUND(19.5*1.2032,2) -> 23.46 | G26: =ROUND(E26*F26,2) -> 23.46
A27: F099703061 | B27: Embasa | C27: Metais Pesados - Arsênio | D27: un | E27: 1 | F27: =ROUND(25*1.2032,2) -> 30.08 | G27: 30.08
A28: F099703063 | B28: Embasa | C28: Metais Pesados - Bário | D28: un | E28: 1 | F28: =ROUND(19.5*1.2032,2) -> 23.46 | G28: =ROUND(E28*F28,2) -> 23.46
A29: F099703068 | B29: Embasa | C29: Metais Pesados - Cadmio | D29: un | E29: 1 | F29: 23.46 | G29: 23.46
A30: F099703070 | B30: Embasa | C30: Metais Pesados - Chumbo | D30: un | E30: 1 | F30: 23.46 | G30: 23.46
A31: F099703066 | B31: Embasa | C31: Metais Pesados - Cromo | D31: un | E31: 1 | F31: 23.46 | G31: 23.46
A32: F099703062 | B32: Embasa | C32: Metais Pesados - Ferro | D32: un | E32: 1 | F32: 23.46 | G32: 23.46
A33: F099703065 | B33: Embasa | C33: Metais Pesados - Manganês | D33: un | E33: 1 | F33: 23.46 | G33: 23.46
A34: F099703069 | B34: Embasa | C34: Metais Pesados - Mercúrio | D34: un | E34: 1 | F34: =ROUND(25*1.2032,2) -> 30.08 | G34: 30.08
A35: F099703067 | B35: Embasa | C35: Metais Pesados - Zinco | D35: un | E35: 1 | F35: =ROUND(19.5*1.2032,2) -> 23.46 | G35: 23.46
A36: 33.01.40 | B36: Embasa | C36: Organoclorados | D36: un | E36: 1 | F36: =ROUND(210.49*1.2032,2) -> 253.26 | G36: 253.26
A37: 33.01.40 | B37: Embasa | C37: Organofosforado | D37: un | E37: 1 | F37: =ROUND(210.49*1.2032,2) -> 253.26 | G37: =ROUND(E37*F37,2) -> 253.26
A38: TOTAL SERVIÇOS ANÁLISE AMBIENTAL | G38: =SUM(G8:G37) -> 1177.95
A39: LEGENDA:
A40: Uni - unidade de medição do insumo;
A41: Qde - Quantidade do Insumo (não pode ocorrer alteração pela Licitante)
A42: PU - Preço Unitário (já incluso BDI de 20,32%, tal qual as composições padrão da Codevasf)
A43: PT - Preço Total (incluído encargos, taxas e impostos) - PT = Qde x PU

Sheet PFP2.1_FatorKa
A1: DETALHAMENTO DOS ENCARGOS SOCIAIS: Ka | F1: CODIGO:
F2: PFP-2.1
A3: NOME DA CONSULTORA:
A5: PROJETO: | C5: CONTRATANTE: | F5: =PFP!J5 -> BASE: Set/2022
A6: =PFP!A6 -> ESTUDOS E PROJETO BÁSICO/EXECUTIVO DA SEGUNDA ETAPA DOS SISTEMAS DE ABASTECIMENTO DE ÁGUA A PARTIR DO CANAL DO SERTÃO DE ALAGOAS, ATENDENDO OS MUNICÍPIOS DE INHAPI, OLHO D`ÁGUA DO CASADO E PIRANHAS NO ESTADO DE ALAGOAS | C6: =PFP!F6 -> 5ª SUPERINTENDÊNCIA REGIONAL DA CODEVASF | F6: =PFP!J6 -> PROP: Set/2022 CODEVASF: fev/2020 SICRO/AL: Abril/2022 EMBASA: jan/2022 ORSE: jul/2022
A7: Cod | B7: DESCRIÇÃO | E7: % | F7: R$
A8: A | B8: ENCARGOS SOCIAIS BÁSICOS | E8: =ROUND(SUM(E9:E17),4) -> 0.368 | F8: =ROUND(E8*SUMIF(PFP!$B$8:$B$27,"MO1",PFP!$J$8:$J$27),2) -> 36297.69
A9: A1 | B9: INSS | E9: 0.2 | F9: =ROUND(E9*SUMIF(PFP!$B$8:$B$27,"MO1",PFP!$J$8:$J$27),2) -> 19727.01
A10: A2 | B10: SESI | E10: 0.015 | F10: =ROUND(E10*SUMIF(PFP!$B$8:$B$27,"MO1",PFP!$J$8:$J$27),2) -> 1479.53
A11: A3 | B11: SENAI | E11: 0.01 | F11: =ROUND(E11*SUMIF(PFP!$B$8:$B$27,"MO1",PFP!$J$8:$J$27),2) -> 986.35
A12: A4 | B12: INCRA | E12: 0.002 | F12: =ROUND(E12*SUMIF(PFP!$B$8:$B$27,"MO1",PFP!$J$8:$J$27),2) -> 197.27
A13: A5 | B13: SEBRAE | E13: 0.006 | F13: =ROUND(E13*SUMIF(PFP!$B$8:$B$27,"MO1",PFP!$J$8:$J$27),2) -> 591.81
A14: A6 | B14: Salário Educação | E14: 0.025 | F14: =ROUND(E14*SUMIF(PFP!$B$8:$B$27,"MO1",PFP!$J$8:$J$27),2) -> 2465.88
A15: A7 | B15: Seguro Contra Acidentes de Trabalho | E15: 0.03 | F15: =ROUND(E15*SUMIF(PFP!$B$8:$B$27,"MO1",PFP!$J$8:$J$27),2) -> 2959.05
A16: A8 | B16: FGTS | E16: 0.08 | F16: =ROUND(E16*SUMIF(PFP!$B$8:$B$27,"MO1",PFP!$J$8:$J$27),2) -> 7890.8
A17: A9 | B17: SECONCI | F17: =ROUND(E17*SUMIF(PFP!$B$8:$B$27,"MO1",PFP!$J$8:$J$27),2) -> 0
A18: B | B18: ENCARGOS SOCIAIS QUE RECEBEM INCIDÊNCIA DE "A" | E18: =ROUND(SUM(E19:E25),4) -> 0.1609 | F18: =ROUND(E18*SUMIF(PFP!$B$8:$B$27,"MO1",PFP!$J$8:$J$27),2) -> 15870.38
A19: B3 | B19: Auxílio Enfermidade | E19: 0.0066 | F19: =ROUND(E19*SUMIF(PFP!$B$8:$B$27,"MO1",PFP!$J$8:$J$27),2) -> 650.99
A20: B4 | B20: 13º Salário | E20: 0.0833 | F20: =ROUND(E20*SUMIF(PFP!$B$8:$B$27,"MO1",PFP!$J$8:$J$27),2) -> 8216.3
A21: B5 | B21: Licença Paternidade | E21: 0.0006 | F21: =ROUND(E21*SUMIF(PFP!$B$8:$B$27,"MO1",PFP!$J$8:$J$27),2) -> 59.18
A22: B6 | B22: Faltas Justificadas | E22: 0.0056 | F22: =ROUND(E22*SUMIF(PFP!$B$8:$B$27,"MO1",PFP!$J$8:$J$27),2) -> 552.36
A23: B8 | B23: Auxílio Acidente de Trabalho | E23: 0.0008 | F23: =ROUND(E23*SUMIF(PFP!$B$8:$B$27,"MO1",PFP!$J$8:$J$27),2) -> 78.91
A24: B9 | B24: Férias Gozadas | E24: 0.0638 | F24: =ROUND(E24*SUMIF(PFP!$B$8:$B$27,"MO1",PFP!$J$8:$J$27),2) -> 6292.91
A25: B10 | B25: Salário Maternidade | E25: 0.0002 | F25: =ROUND(E25*SUMIF(PFP!$B$8:$B$27,"MO1",PFP!$J$8:$J$27),2) -> 19.73
A26: C | B26: ENCARGOS SOCIAIS QUE NÃO RECEBEM INCIDÊNCIA DE "A" | E26: =ROUND(SUM(E27:E31),4) -> 0.106 | F26: =ROUND(E26*SUMIF(PFP!$B$8:$B$27,"MO1",PFP!$J$8:$J$27),2) -> 10455.31
A27: C1 | B27: Aviso Prévio Indenizado | E27: 0.0362 | F27: =ROUND(E27*SUMIF(PFP!$B$8:$B$27,"MO1",PFP!$J$8:$J$27),2) -> 3570.59
A28: C2 | B28: Aviso Prévio Trabalhado | E28: 0.0009 | F28: =ROUND(E28*SUMIF(PFP!$B$8:$B$27,"MO1",PFP!$J$8:$J$27),2) -> 88.77
A29: C3 | B29: Férias Indenizadas | E29: 0.0383 | F29: =ROUND(E29*SUMIF(PFP!$B$8:$B$27,"MO1",PFP!$J$8:$J$27),2) -> 3777.72
A30: C4 | B30: Depósito Rescisão Sem Justa Causa | E30: 0.0276 | F30: =ROUND(E30*SUMIF(PFP!$B$8:$B$27,"MO1",PFP!$J$8:$J$27),2) -> 2722.33
A31: C5 | B31: Indenização Adicional | E31: 0.003 | F31: =ROUND(E31*SUMIF(PFP!$B$8:$B$27,"MO1",PFP!$J$8:$J$27),2) -> 295.91
A32: D | B32: REINCIDÊNCIAS | E32: =ROUND(SUM(E33:E34),4) -> 0.0624 | F32: =ROUND(E32*SUMIF(PFP!$B$8:$B$27,"MO1",PFP!$J$8:$J$27),2) -> 6154.83
A33: D1 | B33: Reincidência de "A" sobre "B" | E33: =ROUND(E8*E18,4) -> 0.0592 | F33: =ROUND(E33*SUMIF(PFP!$B$8:$B$27,"MO1",PFP!$J$8:$J$27),2) -> 5839.19
A34: D2 | B34: Reincidência de "A" sobre Aviso Prévio Trabalhado e reincidência do FGTS sobre Aviso Prévio Indenizado | E34: =ROUND((E28*E8)+(E27*E16),4) -> 0.0032 | F34: =ROUND(E34*SUMIF(PFP!$B$8:$B$27,"MO1",PFP!$J$8:$J$27),2) -> 315.63
A35: K1a | B35: ENCARGOS SOCIAIS | E35: =ROUND(E8+E18+E26+E32,4) -> 0.6973 | F35: =ROUND(E35*SUMIF(PFP!$B$8:$B$27,"MO1",PFP!$J$8:$J$27),2) -> 68778.21
A36: Ka | B36: TAXA DE RESSARCIMENTO DE DESPESAS E ENCARGOS SOBRE MO1 | E36: =ROUND((1+E35+PFP3_FatorKd!E13)*(1+PFP3_FatorKd!E12)*(1+PFP3_FatorKd!E8),4) -> 2.2776
A37: OBSERVAÇÃO: CELETISTAS E EQUIVALENTES
A38: 1 - DISCRIMINAR OS ENCARGOS SOCIAIS COM SEUS RESPECTIVOS PERCENTUAS TOTALIZANDO OS MESMOS.
A39: 2 - APLICAR O % TOTAL P/ CALCULAR OS E. SOCIAIS INCIDENTES NA MÃO-DE-OBRA CELETISTAS
A40: Ka - Taxa de Ressarcimento de Despesas e Encargos sobre a Mão de Obra CELETISTA (incide apenas no Insumo Codigo MO1)
A41: Ka = (1 + K1 + K2) x (1 + K3) x (1 + K4)

Sheet PFP2.2_FatorKb
A1: DETALHAMENTO DOS ENCARGOS SOCIAIS: Kb | F1: CODIGO:
F2: PFP-2.2
A3: NOME DA CONSULTORA:
A5: PROJETO: | C5: CONTRATANTE: | F5: =PFP!J5 -> BASE: Set/2022
A6: =PFP!A6 -> ESTUDOS E PROJETO BÁSICO/EXECUTIVO DA SEGUNDA ETAPA DOS SISTEMAS DE ABASTECIMENTO DE ÁGUA A PARTIR DO CANAL DO SERTÃO DE ALAGOAS, ATENDENDO OS MUNICÍPIOS DE INHAPI, OLHO D`ÁGUA DO CASADO E PIRANHAS NO ESTADO DE ALAGOAS | C6: =PFP!F6 -> 5ª SUPERINTENDÊNCIA REGIONAL DA CODEVASF | F6: =PFP!J6 -> PROP: Set/2022 CODEVASF: fev/2020 SICRO/AL: Abril/2022 EMBASA: jan/2022 ORSE: jul/2022
A7: Cod | B7: DESCRIÇÃO | E7: % | F7: R$
A8: A | B8: ENCARGOS SOCIAIS BÁSICOS | E8: =ROUND(SUM(E9:E17),4) -> 0.2 | F8: =ROUND(E8*SUMIF(PFP!$B$8:$B$27,"MO2",PFP!$J$8:$J$27),2) -> 11381.49
A9: A1 | B9: INSS | E9: 0.2 | F9: =ROUND(E9*SUMIF(PFP!$B$8:$B$27,"MO2",PFP!$J$8:$J$27),2) -> 11381.49
A10: A2 | B10: SESI | F10: =ROUND(E10*SUMIF(PFP!$B$8:$B$27,"MO2",PFP!$J$8:$J$27),2) -> 0
A11: A3 | B11: SENAI | F11: =ROUND(E11*SUMIF(PFP!$B$8:$B$27,"MO2",PFP!$J$8:$J$27),2) -> 0
A12: A4 | B12: INCRA | F12: =ROUND(E12*SUMIF(PFP!$B$8:$B$27,"MO2",PFP!$J$8:$J$27),2) -> 0
A13: A5 | B13: SEBRAE | F13: =ROUND(E13*SUMIF(PFP!$B$8:$B$27,"MO2",PFP!$J$8:$J$27),2) -> 0
A14: A6 | B14: Salário Educação | F14: =ROUND(E14*SUMIF(PFP!$B$8:$B$27,"MO2",PFP!$J$8:$J$27),2) -> 0
A15: A7 | B15: Seguro Contra Acidentes de Trabalho | F15: =ROUND(E15*SUMIF(PFP!$B$8:$B$27,"MO2",PFP!$J$8:$J$27),2) -> 0
A16: A8 | B16: FGTS | F16: =ROUND(E16*SUMIF(PFP!$B$8:$B$27,"MO2",PFP!$J$8:$J$27),2) -> 0
A17: A9 | B17: SECONCI | F17: =ROUND(E17*SUMIF(PFP!$B$8:$B$27,"MO2",PFP!$J$8:$J$27),2) -> 0
A18: B | B18: ENCARGOS SOCIAIS QUE RECEBEM INCIDÊNCIA DE "A" | E18: =ROUND(SUM(E19:E25),4) -> 0 | F18: =ROUND(E18*SUMIF(PFP!$B$8:$B$27,"MO2",PFP!$J$8:$J$27),2) -> 0
A19: B3 | B19: Auxílio Enfermidade | F19: =ROUND(E19*SUMIF(PFP!$B$8:$B$27,"MO2",PFP!$J$8:$J$27),2) -> 0
A20: B4 | B20: 13º Salário | F20: =ROUND(E20*SUMIF(PFP!$B$8:$B$27,"MO2",PFP!$J$8:$J$27),2) -> 0
A21: B5 | B21: Licença Paternidade | F21: =ROUND(E21*SUMIF(PFP!$B$8:$B$27,"MO2",PFP!$J$8:$J$27),2) -> 0
A22: B6 | B22: Faltas Justificadas | F22: =ROUND(E22*SUMIF(PFP!$B$8:$B$27,"MO2",PFP!$J$8:$J$27),2) -> 0
A23: B8 | B23: Auxílio Acidente de Trabalho | F23: =ROUND(E23*SUMIF(PFP!$B$8:$B$27,"MO2",PFP!$J$8:$J$27),2) -> 0
A24: B9 | B24: Férias Gozadas | F24: =ROUND(E24*SUMIF(PFP!$B$8:$B$27,"MO2",PFP!$J$8:$J$27),2) -> 0
A25: B10 | B25: Salário Maternidade | F25: =ROUND(E25*SUMIF(PFP!$B$8:$B$27,"MO2",PFP!$J$8:$J$27),2) -> 0
A26: C | B26: ENCARGOS SOCIAIS QUE NÃO RECEBEM INCIDÊNCIA DE "A" | E26: =ROUND(SUM(E27:E31),4) -> 0 | F26: =ROUND(E26*SUMIF(PFP!$B$8:$B$27,"MO2",PFP!$J$8:$J$27),2) -> 0
A27: C1 | B27: Aviso Prévio Indenizado | F27: =ROUND(E27*SUMIF(PFP!$B$8:$B$27,"MO2",PFP!$J$8:$J$27),2) -> 0
A28: C2 | B28: Aviso Prévio Trabalhado | F28: =ROUND(E28*SUMIF(PFP!$B$8:$B$27,"MO2",PFP!$J$8:$J$27),2) -> 0
A29: C3 | B29: Férias Indenizadas | F29: =ROUND(E29*SUMIF(PFP!$B$8:$B$27,"MO2",PFP!$J$8:$J$27),2) -> 0
A30: C4 | B30: Depósito Rescisão Sem Justa Causa | F30: =ROUND(E30*SUMIF(PFP!$B$8:$B$27,"MO2",PFP!$J$8:$J$27),2) -> 0
A31: C5 | B31: Indenização Adicional | F31: =ROUND(E31*SUMIF(PFP!$B$8:$B$27,"MO2",PFP!$J$8:$J$27),2) -> 0
A32: D | B32: REINCIDÊNCIAS | E32: =ROUND(SUM(E33:E34),4) -> 0 | F32: =ROUND(E32*SUMIF(PFP!$B$8:$B$27,"MO2",PFP!$J$8:$J$27),2) -> 0
A33: D1 | B33: Reincidência de "A" sobre "B" | F33: =ROUND(E33*SUMIF(PFP!$B$8:$B$27,"MO2",PFP!$J$8:$J$27),2) -> 0
A34: D2 | B34: Reincidência de "A" sobre Aviso Prévio Trabalhado e reincidência do FGTS sobre Aviso Prévio Indenizado | F34: =ROUND(E34*SUMIF(PFP!$B$8:$B$27,"MO2",PFP!$J$8:$J$27),2) -> 0
A35: K1b | B35: ENCARGOS SOCIAIS | E35: =ROUND(E8+E18+E26+E32,4) -> 0.2 | F35: =ROUND(E35*SUMIF(PFP!$B$8:$B$27,"MO2",PFP!$J$8:$J$27),2) -> 11381.49
A36: Kb | B36: TAXA DE RESSARCIMENTO DE DESPESAS E ENCARGOS SOBRE MO2 | E36: =ROUND((1+E35+PFP3_FatorKd!E13)*(1+PFP3_FatorKd!E12)*(1+PFP3_FatorKd!E8),4) -> 1.6645
A37: OBSERVAÇÃO: AUTÔNOMOS E EQUIVALENTES
A38: 1 - DISCRIMINAR OS ENCARGOS SOCIAIS COM SEUS RESPECTIVOS PERCENTUAS TOTALIZANDO OS MESMOS.
A39: 2 - APLICAR O % TOTAL P/ CALCULAR OS E. SOCIAIS INCIDENTES NA MÃO-DE-OBRA AUTONÔMOS
A40: Kb - Taxa de Ressarcimento de Despesas e Encargos sobre a Mão de Obra AUTONÔMA (incide apenas no Insumo Codigo MO2)
A41: Kb = (1 + K1 + K2) x (1 + K3) x (1 + K4)

Sheet PFP2.3_FatorKc
A1: DETALHAMENTO DOS ENCARGOS SOCIAIS: Kc | F1: CODIGO:
F2: PFP-2.3
A3: NOME DA CONSULTORA:
A5: PROJETO: | C5: CONTRATANTE: | F5: =PFP!J5 -> BASE: Set/2022
A6: =PFP!A6 -> ESTUDOS E PROJETO BÁSICO/EXECUTIVO DA SEGUNDA ETAPA DOS SISTEMAS DE ABASTECIMENTO DE ÁGUA A PARTIR DO CANAL DO SERTÃO DE ALAGOAS, ATENDENDO OS MUNICÍPIOS DE INHAPI, OLHO D`ÁGUA DO CASADO E PIRANHAS NO ESTADO DE ALAGOAS | C6: CODEVASF (SEDE) | F6: =PFP!J6 -> PROP: Set/2022 CODEVASF: fev/2020 SICRO/AL: Abril/2022 EMBASA: jan/2022 ORSE: jul/2022
A7: Cod | B7: DESCRIÇÃO | E7: % | F7: R$
A8: A | B8: ENCARGOS SOCIAIS BÁSICOS | E8: =SUM(E9:E17) -> 0 | F8: =ROUND(E8*SUMIF(PFP!$B$8:$B$27,"MO3",PFP!$J$8:$J$27),2) -> 0
A9: A1 | B9: INSS | F9: =ROUND(E9*SUMIF(PFP!$B$8:$B$27,"MO3",PFP!$J$8:$J$27),2) -> 0
A10: A2 | B10: SESI | F10: =ROUND(E10*SUMIF(PFP!$B$8:$B$27,"MO3",PFP!$J$8:$J$27),2) -> 0
A11: A3 | B11: SENAI | F11: =ROUND(E11*SUMIF(PFP!$B$8:$B$27,"MO3",PFP!$J$8:$J$27),2) -> 0
A12: A4 | B12: INCRA | F12: =ROUND(E12*SUMIF(PFP!$B$8:$B$27,"MO3",PFP!$J$8:$J$27),2) -> 0
A13: A5 | B13: SEBRAE | F13: =ROUND(E13*SUMIF(PFP!$B$8:$B$27,"MO3",PFP!$J$8:$J$27),2) -> 0
A14: A6 | B14: Salário Educação | F14: =ROUND(E14*SUMIF(PFP!$B$8:$B$27,"MO3",PFP!$J$8:$J$27),2) -> 0
A15: A7 | B15: Seguro Contra Acidentes de Trabalho | F15: =ROUND(E15*SUMIF(PFP!$B$8:$B$27,"MO3",PFP!$J$8:$J$27),2) -> 0
A16: A8 | B16: FGTS | F16: =ROUND(E16*SUMIF(PFP!$B$8:$B$27,"MO3",PFP!$J$8:$J$27),2) -> 0
A17: A9 | B17: SECONCI | F17: =ROUND(E17*SUMIF(PFP!$B$8:$B$27,"MO3",PFP!$J$8:$J$27),2) -> 0
A18: B | B18: ENCARGOS SOCIAIS QUE RECEBEM INCIDÊNCIA DE "A" | E18: =ROUND(SUM(E19:E25),4) -> 0 | F18: =ROUND(E18*SUMIF(PFP!$B$8:$B$27,"MO3",PFP!$J$8:$J$27),2) -> 0
A19: B3 | B19: Auxílio Enfermidade | F19: =ROUND(E19*SUMIF(PFP!$B$8:$B$27,"MO3",PFP!$J$8:$J$27),2) -> 0
A20: B4 | B20: 13º Salário | F20: =ROUND(E20*SUMIF(PFP!$B$8:$B$27,"MO3",PFP!$J$8:$J$27),2) -> 0
A21: B5 | B21: Licença Paternidade | F21: =ROUND(E21*SUMIF(PFP!$B$8:$B$27,"MO3",PFP!$J$8:$J$27),2) -> 0
A22: B6 | B22: Faltas Justificadas | F22: =ROUND(E22*SUMIF(PFP!$B$8:$B$27,"MO3",PFP!$J$8:$J$27),2) -> 0
A23: B8 | B23: Auxílio Acidente de Trabalho | F23: =ROUND(E23*SUMIF(PFP!$B$8:$B$27,"MO3",PFP!$J$8:$J$27),2) -> 0
A24: B9 | B24: Férias Gozadas | F24: =ROUND(E24*SUMIF(PFP!$B$8:$B$27,"MO3",PFP!$J$8:$J$27),2) -> 0
A25: B10 | B25: Salário Maternidade | F25: =ROUND(E25*SUMIF(PFP!$B$8:$B$27,"MO3",PFP!$J$8:$J$27),2) -> 0
A26: C | B26: ENCARGOS SOCIAIS QUE NÃO RECEBEM INCIDÊNCIA DE "A" | E26: =ROUND(SUM(E27:E31),4) -> 0 | F26: =ROUND(E26*SUMIF(PFP!$B$8:$B$27,"MO3",PFP!$J$8:$J$27),2) -> 0
A27: C1 | B27: Aviso Prévio Indenizado | F27: =ROUND(E27*SUMIF(PFP!$B$8:$B$27,"MO3",PFP!$J$8:$J$27),2) -> 0
A28: C2 | B28: Aviso Prévio Trabalhado | F28: =ROUND(E28*SUMIF(PFP!$B$8:$B$27,"MO3",PFP!$J$8:$J$27),2) -> 0
A29: C3 | B29: Férias Indenizadas | F29: =ROUND(E29*SUMIF(PFP!$B$8:$B$27,"MO3",PFP!$J$8:$J$27),2) -> 0
A30: C4 | B30: Depósito Rescisão Sem Justa Causa | F30: =ROUND(E30*SUMIF(PFP!$B$8:$B$27,"MO3",PFP!$J$8:$J$27),2) -> 0
A31: C5 | B31: Indenização Adicional | F31: =ROUND(E31*SUMIF(PFP!$B$8:$B$27,"MO3",PFP!$J$8:$J$27),2) -> 0
A32: D | B32: REINCIDÊNCIAS | E32: =ROUND(SUM(E33:E34),4) -> 0 | F32: =ROUND(E32*SUMIF(PFP!$B$8:$B$27,"MO3",PFP!$J$8:$J$27),2) -> 0
A33: D1 | B33: Reincidência de "A" sobre "B" | F33: =ROUND(E33*SUMIF(PFP!$B$8:$B$27,"MO3",PFP!$J$8:$J$27),2) -> 0
A34: D2 | B34: Reincidência de "A" sobre Aviso Prévio Trabalhado e reincidência do FGTS sobre Aviso Prévio Indenizado | F34: =ROUND(E34*SUMIF(PFP!$B$8:$B$27,"MO3",PFP!$J$8:$J$27),2) -> 0
A35: K1c | B35: ENCARGOS SOCIAIS | E35: =ROUND(E8+E18+E26+E32,4) -> 0 | F35: =ROUND(E35*SUMIF(PFP!$B$8:$B$27,"MO3",PFP!$J$8:$J$27),2) -> 0
A36: Kc | B36: TAXA DE RESSARCIMENTO DE DESPESAS E ENCARGOS SOBRE MO3 | E36: =ROUND((1+E35+PFP3_FatorKd!E13)*(1+PFP3_FatorKd!E12)*(1+PFP3_FatorKd!E8),4) -> 1.4179
A37: OBSERVAÇÃO: SOCIETÁRIOS E EQUIVALENTES
A38: 1 - DISCRIMINAR OS ENCARGOS SOCIAIS COM SEUS RESPECTIVOS PERCENTUAS TOTALIZANDO OS MESMOS.
A39: 2 - APLICAR O % TOTAL P/ CALCULAR OS E. SOCIAIS INCIDENTES NA MÃO-DE-OBRA DE SOCIETÁRIOS
A40: Kc - Taxa de Ressarcimento de Despesas e Encargos sobre a Mão de Obra SOCIETÁRIA (incide apenas no Insumo Codigo MO3)
A41: Kc = (1 + K1 + K2) x (1 + K3) x (1 + K4)

Sheet PFP3_FatorKd
A1: DESPESAS FISCAIS E CUSTOS DIVERSOS: Kc | F1: CODIGO:
F2: PFP-3
A3: NOME DA CONSULTORA:
A5: PROJETO: | C5: CONTRATANTE: | F5: =PFP!J5 -> BASE: Set/2022
A6: =PFP!A6 -> ESTUDOS E PROJETO BÁSICO/EXECUTIVO DA SEGUNDA ETAPA DOS SISTEMAS DE ABASTECIMENTO DE ÁGUA A PARTIR DO CANAL DO SERTÃO DE ALAGOAS, ATENDENDO OS MUNICÍPIOS DE INHAPI, OLHO D`ÁGUA DO CASADO E PIRANHAS NO ESTADO DE ALAGOAS | C6: CODEVASF (SEDE) | F6: =PFP!J6 -> PROP: Set/2022 CODEVASF: fev/2020 SICRO/AL: Abril/2022 EMBASA: jan/2022 ORSE: jul/2022
A7: Cod | B7: DESCRIÇÃO1 | D7: % preço2 | E7: % custo4 | F7: R$
A8: K4 | B8: TRIBUTOS | D8: =ROUND(D9+D10+D11,4) -> 0.124 | E8: =ROUND(E9+E10+E11,4) -> 0.1416 | F8: =E8*SUM(SUMIF(PFP!$B$8:$B$27,"MO1",PFP!$J$8:$J$27)*(1+'PFP2.1_FatorKa'!$E$35)+SUMIF(PFP!$B$8:$B$27,"MO2",PFP!$J$8:$J$27)*(1+'PFP2.2_FatorKb'!$E$35)+SUMIF(PFP!$B$8:$B$27,"<>MO*",PFP!$J$8:$J$27)+$F$13+$F$12) -> 51567.35286
A9: K4.1 | B9: ISS | D9: 0.05 | E9: 0.0571 | F9: =E9*SUM(SUMIF(PFP!$B$8:$B$27,"MO1",PFP!$J$8:$J$27)*(1+'PFP2.1_FatorKa'!$E$35)+SUMIF(PFP!$B$8:$B$27,"MO2",PFP!$J$8:$J$27)*(1+'PFP2.2_FatorKb'!$E$35)+SUMIF(PFP!$B$8:$B$27,"<>MO*",PFP!$J$8:$J$27)+$F$13+$F$12) -> 20794.46221
A10: K4.2 | B10: PIS3 - aliquota efetiva aplicavel percentual-desconto | D10: 0.0132 | E10: 0.0151 | F10: =E10*SUM(SUMIF(PFP!$B$8:$B$27,"MO1",PFP!$J$8:$J$27)*(1+'PFP2.1_FatorKa'!$E$35)+SUMIF(PFP!$B$8:$B$27,"MO2",PFP!$J$8:$J$27)*(1+'PFP2.2_FatorKb'!$E$35)+SUMIF(PFP!$B$8:$B$27,"<>MO*",PFP!$J$8:$J$27)+$F$13+$F$12) -> 5499.060934
A11: K4.3 | B11: COFINS3 - aliquota efetiva aplicavel percentual-desconto | D11: 0.0608 | E11: 0.0694 | F11: =E11*SUM(SUMIF(PFP!$B$8:$B$27,"MO1",PFP!$J$8:$J$27)*(1+'PFP2.1_FatorKa'!$E$35)+SUMIF(PFP!$B$8:$B$27,"MO2",PFP!$J$8:$J$27)*(1+'PFP2.2_FatorKb'!$E$35)+SUMIF(PFP!$B$8:$B$27,"<>MO*",PFP!$J$8:$J$27)+$F$13+$F$12) -> 25273.82972
A12: K3 | B12: REMUNERAÇÃO DA EMPRESA (LUCRO) | E12: 0.08 | F12: =E12*SUM(SUMIF(PFP!$B$8:$B$27,"MO1",PFP!$J$8:$J$27)*(1+'PFP2.1_FatorKa'!$E$35)+SUMIF(PFP!$B$8:$B$27,"MO2",PFP!$J$8:$J$27)*(1+'PFP2.2_FatorKb'!$E$35)+SUMIF(PFP!$B$8:$B$27,"<>MO*",PFP!$J$8:$J$27)+$F$13) -> 26976.01635
A13: K2 | B13: CUSTOS DA ADMINISTRAÇÃO CENTRAL | E13: =ROUND(SUM(E14:E16),4) -> 0.15 | F13: =ROUND(E13*SUMIF(PFP!$B$8:$B$27,"MO*",PFP!$J$8:$J$27),2) -> 28385.86
A14: K2.1 | B14: Custos da administração central da empresa (diretoria, pessoal técnico de apoio e pessoal administrativo não diretamente vinculado à prestação dos serviços) | E14: 0.1 | F14: =ROUND(E14*SUMIF(PFP!$B$8:$B$27,"MO*",PFP!$J$8:$J$27),2) -> 18923.91
A15: K2.2 | B15: Outras despesas que afetam o custo de produção como treinamento, biblioteca, programa de qualidade, programa de benefícios, auditoria interna e externa | E15: 0.03 | F15: =ROUND(E15*SUMIF(PFP!$B$8:$B$27,"MO*",PFP!$J$8:$J$27),2) -> 5677.17
A16: K2.3 | B16: Despesas fixas e variaveis com patrimônio, aluguéis, comunicação, manutenção e transporte não diretamente relacionados com o custo direto dos serviços | E16: 0.02 | F16: =ROUND(E16*SUMIF(PFP!$B$8:$B$27,"MO*",PFP!$J$8:$J$27),2) -> 3784.78
A17: Kd | B17: TAXA RESSARCIMENTO DE DESPESAS SOBRE CUSTOS DIVERSOS | E17: =ROUND((1+E12)*(1+E8),4) -> 1.2329
A18: NOME DO INFORMANTE: | E18: QUALIFICAÇÃO:
A20: ASSINATURA: | E20: DATA:
A22: Observação:
A23: 1 - RELACIONAR OS CUSTOS DE ADMINISTRAÇÃO COM RESPECTIVOS PERCENTUAIS INCIDENTES NA MÃO -DE-OBRA
A24: 1 - DISCRIMINAR OS TRIBUTOS QUE INCIDEM SOBRE OS CUSTOS DA PRESTAÇÃO DOS SERVIÇOS
A25: 2 - K4 = INDICAR % DE CADA TRIBUTO E A SOMA DOS MESMOS (ex: ISS 5% + PIS 1,65% + COFINS 7,60% = 14,25%)
A26: 3 - PIS e COFINS, Regime de Incidencia Acumulativa (0,65% e 3,00% - sem percentual de desconto) ou em Regime de Incidencia Não Acumulativa (1,65% e 7,60% - aplicável percentual de desconto) de acordo com a forma de apuração do lucro no IRPJ. APRESENTAR COMPROVANTES de aproveitamento de créditos tributários dos últimos 12 meses em caso de aplicação de "percentual de desconto".
A27: 4 - AS DESPESAS FISCAIS (K4) INCIDEM SOBRE O TOTAL DA FATURA E NÃO SOBRE OS CUSTOS INCORRIDOS,
A28: DEVENDO SER CALCULADO O K4' APLICANDO-SE A SEGUINTE FÓRMULA:
A29: K4' = { [ 1 / ( 1 - K4) ] - 1 } x 100
A30: =CONCATENATE(" K4' = { [ 1 / ( 1 - ",D8," ) ] - 1 } x 100") -> K4' = { [ 1 / ( 1 - 0,124 ) ] - 1 } x 100
A31: Kc - Taxa de Ressarcimento de Despesas sobre Custos Diversos (incide sobre os Insumos Codigo DP e EM)
A32: Kc = (1 + K3) x (1 + K4)
A33: K2 - Incide sobre o Custo Total (CT) da Mão de Obra (MO* = MO1 + MO2)
A34: K3 - Incide sobre o Custo Total (CT) Mão de Obra com encargos (MO1 x Ka ou MO2 x Kb), demais Custos (DP e EM), e Custos da Administração Central (K2)
A35: K4 - Incide sobre o Custo Total (CT) Mão de Obra com encargos (MO1 x Ka ou MO2 x Kb), demais Custos (DP e EM), e Custos da Administração Central (K2) e Lucro (K3)

Sheet CRO1_Ins-Pro
A1: INSUMOS POR ETAPA/PRODUTO | H1: CODIGO:
H2: CRO-1
A3: Cod. | B3: Categoria / Insumo | C3: Uni | D3: Qde | E3: CUD | F3: PU | G3: FatorK | H3: EB | I3: EVA | J3: PBE
G4: Meses | H4: 3 | I4: 1 | J4: 1
A5: =PFP!C8 -> P0 | B5: =PFP!D8 -> Engenheiro coordenador (P8061) | C5: mês | D5: =SUM(H5:J5) -> 2 | E5: =PFP!G8 -> 16848.3 | F5: =PFP!H8 -> 23889.2 | G5: =PFP!I8 -> 1.4179 | H5: 0.5 | I5: 1 | J5: 0.5
A6: =PFP!C9 -> P1 | B6: =PFP!D9 -> Engenheiro sênior (P8067) | C6: mês | D6: 4 | E6: =PFP!G9 -> 14226.86 | F6: =PFP!H9 -> 23680.61 | G6: =PFP!I9 -> 1.6645 | H6: 1 | I6: 2 | J6: 1
A7: =PFP!C10 -> P2 | B7: =PFP!D10 -> Engenheiro pleno (P8066) | C7: mês | D7: 4 | E7: =PFP!G10 -> 10864.39 | F7: =PFP!H10 -> 24744.73 | G7: =PFP!I10 -> 2.2776 | H7: 1 | I7: 2 | J7: 1
A8: =PFP!C11 -> P3 | B8: =PFP!D11 -> Engenheiro júnior (P8065) | C8: mês | D8: 3 | E8: =PFP!G11 -> 10302 | F8: =PFP!H11 -> 23463.84 | G8: =PFP!I11 -> 2.2776 | I8: 2 | J8: 1
A9: =PFP!C12 -> T1 | B9: =PFP!D12 -> Técnico de projetos/obra (P8147) | C9: mês | D9: 4 | E9: =PFP!G12 -> 2974.3 | F9: =PFP!H12 -> 6774.27 | G9: =PFP!I12 -> 2.2776 | H9: 1 | I9: 2 | J9: 1
A10: =PFP!C13 -> A1 | B10: =PFP!D13 -> Secretária (P8135) | C10: mês | D10: 2 | E10: =PFP!G13 -> 2189.27 | F10: =PFP!H13 -> 4986.28 | G10: =PFP!I13 -> 2.2776 | I10: 1 | J10: 1
A11: =PFP!C14 -> S1 | B11: =PFP!D14 -> Analista sênior (P8125) | C11: mês | D11: 0.5 | E11: =PFP!G14 -> 5891.96 | F11: =PFP!H14 -> 13419.53 | G11: =PFP!I14 -> 2.2776 | I11: 0.5
A12: =PFP!C15 -> S2 | B12: =PFP!D15 -> Analista pleno (P8124) | C12: mês | D12: 0.5 | E12: =PFP!G15 -> 4039.8 | F12: =PFP!H15 -> 9201.05 | G12: =PFP!I15 -> 2.2776 | I12: 0.5
A13: =PFP!C16 -> S3 | B13: =PFP!D16 -> Analista júnior (P8123) | C13: mês | D13: 1 | E13: =PFP!G16 -> 3029.85 | F13: =PFP!H16 -> 6900.79 | G13: =PFP!I16 -> 2.2776 | J13: 1
A14: =PFP!C17 -> ECA | B14: =PFP!D17 -> Encargos Comp. e Adicionais | C14: mês | D14: 17.5 | E14: =PFP!G17 -> 905.97 | F14: =PFP!H17 -> 1116.97 | G14: =PFP!I17 -> 1.2329 | I14: =SUM(I5:I13) -> 11 | J14: =SUM(J5:J13) -> 6.5
A15: =PFP!C18 -> AT1 | B15: =PFP!D18 -> Auxilio Transporte Analista junior | C15: mês | D15: 1 | E15: =PFP!G18 -> 37.24 | F15: =PFP!H18 -> 45.91 | G15: =PFP!I18 -> 1.2329 | I15: =I13 -> 0 | J15: =J13 -> 1
A16: =PFP!C19 -> AT2 | B16: =PFP!D19 -> Auxilio Transporte Técnicos | C16: mês | D16: 3 | E16: =PFP!G19 -> 40.57 | F16: =PFP!H19 -> 50.02 | G16: =PFP!I19 -> 1.2329 | I16: =I9 -> 2 | J16: =J9 -> 1
A17: =PFP!C20 -> AT3 | B17: =PFP!D20 -> Auxilio Transporte Secretária | C17: mês | D17: 2 | E17: =PFP!G20 -> 87.68 | F17: =PFP!H20 -> 108.1 | G17: =PFP!I20 -> 1.2329 | I17: =I10 -> 1 | J17: =J10 -> 1
A18: =PFP!C21 -> V1 | B18: =PFP!D21 -> Diárias | C18: dia | D18: 88 | E18: =PFP!G21 -> 218.1 | F18: =PFP!H21 -> 268.9 | G18: =PFP!I21 -> 1.2329 | I18: 44 | J18: 44
A19: =PFP!C22 -> V2 | B19: =PFP!D22 -> Pick-up cabine dupla 4x4, com ar-condicionado, incluindo despesas com combustível, óleos, conservação e manutenção | C19: un | D19: 44 | E19: =PFP!G22 -> 372.21 | F19: =PFP!H22 -> 458.9 | G19: =PFP!I22 -> 1.2329 | I19: =I18/2 -> 22 | J19: =J18/2 -> 22
A20: =PFP!C23 -> V3 | B20: =PFP!D23 -> Passagens Aéreas (ida e volta) | C20: un | D20: 4 | E20: =PFP!G23 -> 1936 | F20: =PFP!H23 -> 2386.89 | G20: =PFP!I23 -> 1.2329 | I20: 2 | J20: 2
A21: =PFP!C24 -> M1 | B21: =PFP!D24 -> Relatório Parcial | C21: un | D21: 9 | E21: =PFP!G24 -> 33.35 | F21: =PFP!H24 -> 41.12 | G21: =PFP!I24 -> 1.2329 | H21: 3 | I21: 3 | J21: 3
A22: =PFP!C25 -> M2 | B22: =PFP!D25 -> Relatório Final | C22: un | D22: 9 | E22: =PFP!G25 -> 1478.8 | F22: =PFP!H25 -> 1823.21 | G22: =PFP!I25 -> 1.2329 | H22: 3 | I22: 3 | J22: 3
A23: =PFP!C26 -> TOP | B23: =PFP!D26 -> Total Serviços Topográficos | C23: un | D23: 1 | E23: =PFP!G26 -> - | F23: =PFP!H26 -> 38154.85 | G23: =PFP!I26 -> - | H23: 1
A24: =PFP!C27 -> GEO | B24: =PFP!D27 -> Total Serviços Geotécnicos | C24: un | D24: 1 | E24: =PFP!G27 -> - | F24: =PFP!H27 -> 18681.79 | G24: =PFP!I27 -> - | H24: 1
A25: =PFP!C28 -> AMB | B25: =PFP!D28 -> Total Serviços Ambientais | C25: un | D25: 1 | E25: =PFP!G28 -> - | F25: =PFP!H28 -> 1177.95 | G25: =PFP!I28 -> - | H25: 1
A26: TOTAL | B26: VALOR TOTAL POR PRODUTO POR SISTEMA | C26: R$ | D26: 515307.08 | H26: =SUM(H30:H50) -> 130751.79 | I26: =SUM(I30:I50) -> 242301.66 | J26: =SUM(J30:J50) -> 142253.63
C27: % | D27: 1.00001 | H27: =ROUND(H26/$D$26,5) -> 0.25374 | I27: =ROUND(I26/$D$26,5) -> 0.47021 | J27: 0.27606
H30: =ROUND($F5*H5,2) -> 11944.6 | I30: =ROUND($F5*I5,2) -> 23889.2 | J30: =ROUND($F5*J5,2) -> 11944.6
H31: =ROUND($F6*H6,2) -> 23680.61 | I31: 47361.22 | J31: 23680.61
H32: 24744.73 | I32: 49489.46 | J32: 24744.73
H33: 0 | I33: 46927.68 | J33: 23463.84
H34: 6774.27 | I34: 13548.54 | J34: 6774.27
H35: 0 | I35: 4986.28 | J35: 4986.28
H36: 0 | I36: 6709.77 | J36: 0
H37: 0 | I37: 4600.53 | J37: 0
H38: 0 | I38: 0 | J38: 6900.79
H39: 0 | I39: 12286.67 | J39: 7260.31
H40: 0 | I40: 0 | J40: 45.91
H41: 0 | I41: 100.04 | J41: 50.02
H42: 0 | I42: 108.1 | J42: 108.1
H43: 0 | I43: 11831.6 | J43: 11831.6
H44: 0 | I44: 10095.8 | J44: 10095.8
H45: 0 | I45: 4773.78 | J45: 4773.78
H46: 123.36 | I46: 123.36 | J46: 123.36
H47: 5469.63 | I47: 5469.63 | J47: 5469.63
H48: 38154.85 | I48: 0 | J48: 0
H49: 18681.79 | I49: 0 | J49: 0
H50: 1177.95 | I50: 0 | J50: 0

Sheet CCU VEÍCULO
C1: Ministério do Desenvolvimento Regional-MDR
C2: Companhia de Desenvolvimento dos Vales do São Francisco e do Parnaíba
C3: 5ª Superintendência Regional
B5: CCU VEÍCULO | C5: FORNECIMENTO DE PICK-UP CABINE DUPLA 4x4, COM AR-CONDICIONADO, INCLUINDO DESPESAS COM COMBUSTÍVEL, ÓLEOS, CONSERVAÇÃO E MANUTENÇÃO.
B9: A | C9: Depreciação mensal do equipamento
B10: A1 | C10: Preço de Aquisição | D10: 269225
B11: A2 | C11: Tempo previsto de vida útil (meses) | D11: 36
B12: A3 | C12: Previsão de recup. na venda do bem usado | D12: 0.4
B13: A4 | C13: Custo mensal [A1-(A3xA1)]/A2 | D13: =(D10-(D12*D10))/D11 -> 4487.083333
B15: B | C15: Juros pelo Capital empregado
B16: B1 | C16: Taxa mensal de Juros | D16: 0.05
B17: B2 | C17: Juros s/depreciação/aluguel (B1xA4) | D17: =D16*D13 -> 224.3541667
B19: C | C19: Conservação e manutenção
B20: C1 | C20: Taxa de gastos s/a deprec. Inc. seguros (%) | D20: 1
B21: C2 | C21: Incidência mensal (C1xA4) | D21: =D20*D13 -> 4487.083333
B23: D | C23: Combustível
B24: D1 | C24: Média mensal de quilômetro por veículo | D24: 3000
B25: D2 | C25: Preço do litro de combustível (GASOLINA COMUM SINAPI/AL - 08/22 - cod4222) | D25: 5.54
B26: D3 | C26: Quilômetros rodados com um litro combustivel | D26: 10
B27: D4 | C27: Combustivel (D1/D3)*D2 | D27: =(D24/D26)*D25 -> 1662
B29: E | C29: Lubrificantes
B30: E1 | C30: Quilometragem do Contrato | D30: 36000
B31: E2 | C31: Franquia por troca de óleo (km) | D31: 5000
B32: E3 | C32: Preço do litro de óleo (SINAPI/AL- 08/22 cod 4227) | D32: 30
B33: E4 | C33: Quantidade de litros de óleo por troca | D33: 3.5
B34: E5 | C34: Quantidade de dias do Contrato | D34: =D42 -> 365
B35: E6 | C35: Lubrificantes E = (E1*E3*E4*30)/E2*E5 | D35: =(D30*D32*D33*30)/(D31*D34) -> 62.1369863
B37: F | C37: Pneus
B38: F1 | C38: Quilometragem do Contrato | D38: =D30 -> 36000
B39: F2 | C39: Vida do Pneu em quilômetros | D39: 45000
B40: F3 | C40: Quantidade de pneus | D40: 5
B41: F4 | C41: Preço do Pneu | D41: 741.38
B42: F5 | C42: Quantidade de dias do contrato | D42: 365
B43: F6 | C43: Pneus = (F1*F3*F4*30)/(F2*F5) | D43: =(D38*D40*D41*30)/(D39*D42) -> 243.7413699
B45: G | C45: Motorista
B46: G1 | C46: Salário com encargos sociais
B48: H | C48: Custo Mensal
C49: Sem Motorista | D49: =D43+D35+D27+D21+D17+D13 -> 11166.39919
C50: Com Motorista
B52: I | C52: Custo por dia (30 dias)
C53: Sem Motorista | D53: =ROUND(D49/30,2) -> 372.21
C54: Com Motorista | D54: =D50/D24 -> 0
